Cogmind - Beta 16 @@@ ROGUE MODE // 2025.11.10 @ 13:20:40 Player: Zish Result: Core destroyed Performance ------------- Evolutions (0) 0 Regions Visited (2) 400 Robots Destroyed (15) 75 Value Destroyed (365) 365 Prototype IDs (2) 40 Alien Tech Used (0) 0 Bonus (-53) -53 TOTAL SCORE: 827 Bonus ------- Friendly Fire -53 Cogmind --------- Core Integrity 0/250 Matter 298/300 Energy 100/100 System Corruption 29% Temperature Cool (0) Movement Core (200) Ox3 Location -10/Subcaves Parts ------- > --- POWER (1) -------- (None) > --- PROPULSION (2) --- Aluminum Leg Aluminum Leg > --- UTILITY (2) ------ Small Storage Unit Light Armor Plating > --- WEAPON (2) ------- Light Assault Rifle Light Assault Rifle > --- INVENTORY (8) ---- Ion Engine Ion Engine Scrap Shield Fragment (49) Scrap Shield Fragment (49) Peak State ------------ > --- POWER ------------ Light Ion Engine > --- PROPULSION ------- Light Treads Light Treads > --- UTILITY ---------- Small Storage Unit Backup Plating I > --- WEAPON ----------- Assault Rifle Light Assault Rifle > --- INVENTORY -------- Ion Engine Aluminum Leg Aluminum Leg Light Assault Rifle [Rating: 7] Favorites ----------- Power Light Ion Engine Engine Light Ion Engine Propulsion Light Treads Treads Light Treads Leg Aluminum Leg Utility Small Storage Unit Storage Small Storage Unit Protection Light Armor Plating Weapon Light Assault Rifle Ballistic Gun Light Assault Rifle Build | -11 -10 -10 ------- Run | Yrd Mat Sub Slots Evolved . | . . . Power . | . . . Propulsion . | . . . Utility . | . . . Weapon . | . . . Parts Attached 10 | 6 1 3 Power 1 | 1 . . Engine 1 | 1 . . Core . | . . . Reactor . | . . . Propulsion 4 | 2 . 2 Treads 2 | 2 . . Leg 2 | . . 2 Wheel . | . . . Hover . | . . . Flight . | . . . Utility 2 | 1 1 . Device . | . . . Storage 1 | 1 . . Processor . | . . . Hackware . | . . . Protection 1 | . 1 . Artifact . | . . . Weapon 3 | 2 . 1 Energy Gun . | . . . Energy Cannon . | . . . Ballistic Gun 3 | 2 . 1 Ballistic Cannon . | . . . Launcher . | . . . Special Weapon . | . . . Impact Weapon . | . . . Slashing Weapon . | . . . Piercing Weapon . | . . . Special Melee Weapon . | . . . Unidentified Prototypes . | . . . Parts Lost 2 | . . 2 Power 1 | . . 1 Propulsion 1 | . . 1 Utility . | . . . Weapon . | . . . Highest Loss Streak 1 | . . 1 To Critical Strikes . | . . . Average Backups 3 | 2 4 3 Power 1 | . 1 2 Propulsion 1 | 1 2 . Utility . | . . . Weapon . | . 1 . Tool/Special . | . . . Unused Backups 2 | . . 2 Power 2 | . . 2 Propulsion . | . . . Utility . | . . . Weapon . | . . . Tool/Special . | . . . Average Slot Usage (%) 99 | . 99 99 Engine 13 | . 14 13 Treads 15 | . 28 9 Leg 12 | . . 18 Storage 14 | . 14 14 Protection 13 | . 13 14 Ballistic Gun 28 | . 28 28 Peak Build Rating 7 | 6 7 7 Average Rating 6 | 5 6 6 On Entrance 4 | . 6 7 Avg Prop Armor Cover (%) . | . . . Naked Turns . | . . . Heaviest Build 14 | 11 14 14 Greatest Support 40 | 40 40 40 Greatest Overweight (x) . | . . . Average Overweight (x) . | . . . Largest Inventory Capacity 8 | 8 8 8 Average Capacity 7 | 7 8 8 Most Carried 6 | 4 6 6 Average Carried 4 | 2 4 4 Final Capacity 8 | 8 8 8 Final Carried 5 | 4 5 4 Class Distribution -------------------- 100% | Mutant Dominant Class ---------------- Mutant | -10/Materials Mutant | -10/Subcaves Resources | -11 -10 -10 ----------- Run | Yrd Mat Sub Matter Collected 585 | 145 349 91 Remotely . | . . . Salvage Created 624 | . 533 91 Parts 36 | . 30 6 Haulers Intercepted . | . . . Recyclers Shooed 5 | . 5 . Parts Field Recycled . | . . . Retrieved Matter . | . . . Parts Self-Destructed 2 | . . 2 Prevented . | . . . Parts Restored . | . . . Kills | -11 -10 -10 ------- Run | Yrd Mat Sub Combat Hostiles Destroyed 11 | . 10 1 Guns 11 | . 10 1 Classes Destroyed 7 | . 4 3 Recycler 2 | . 2 . Watcher 2 | . 2 . Swarmer 3 | . 3 . Grunt 7 | . 7 . Artisan 1 | . . 1 Subdweller 1 | . . 1 Scientist 1 | . . 1 Best Kill Streak 4 | . 4 1 Combat Bots Only 3 | . 3 1 Max Kills in Single Turn 1 | . 1 1 Gunslinging . | . . . Exploded . | . . . Melee . | . . . Uniques/NPCs Destroyed . | . . . Combat | -11 -10 -10 -------- Run | Yrd Mat Sub Hostile Shots Fired 65 | . 60 5 Missed 16 | . 15 1 Hits 49 | . 45 4 Projectile 49 | . 45 4 Damage Taken 870 | . 503 367 Core 251 | . 65 186 Absorbed by Shields . | . . . Core Remaining (%) 100 | 100 . . Volleys Fired 79 | . 56 23 Largest 2 | . 2 2 Hottest 40 | . 40 40 Shots Fired 158 | . 112 46 Gun 158 | . 112 46 Cannon . | . . . Launcher . | . . . Special . | . . . Kinetic 158 | . 112 46 Thermal . | . . . Explosive . | . . . Electromagnetic . | . . . Robot Hit Streak 18 | . 18 4 Robot Miss Streak 4 | . 4 3 Penetration Max . | . . . Secondary Targets 2 | . 2 . Max Gunslinging Chain 1 | . 1 . Shots Hit Robots 84 | . 72 12 Core Hits 31 | . 24 7 Critical Kills 1 | . 1 . Critical Parts Destroyed . | . . . Critical Strikes 1 | . 1 . Destroy 1 | . 1 . Melee Attacks . | . . . Impact . | . . . Slashing . | . . . Piercing . | . . . Sneak Attacks . | . . . Combat Hostiles . | . . . Follow-up Attacks . | . . . Damage Inflicted 1026 | . 814 212 Guns 904 | . 814 90 Cannons . | . . . Explosions . | . . . Melee . | . . . Ramming 122 | . . 122 Kinetic 904 | . 814 90 Thermal . | . . . Explosive . | . . . Electromagnetic . | . . . Impact . | . . . Slashing . | . . . Piercing . | . . . Highest Corruption 29 | . . 29 Average Corruption 13 | . . 13 Corruption Purged . | . . . Corruption Blocked . | . . . Effects 2 | . . 2 Energy Discharges 1 | . . 1 Data Loss (minor) 1 | . . 1 Overload Shots . | . . . Overflow Damage . | . . . Projectiles . | . . . Explosions . | . . . Melee . | . . . Knockbacks . | . . . Impact . | . . . Kinetic . | . . . Secondary . | . . . Self-Inflicted Damage 122 | . . 122 Shots . | . . . Rammed . | . . . Targets Rammed . | . . . Kicked . | . . . Crushed . | . . . Highest Temperature 23 | . 23 . Average Temperature 5 | . 5 . Received Heat Transfer 237 | . 213 24 Siege Activations . | . . . Martial Activations . | . . . Shielding Activations . | . . . Robots Disrupted . | . . . Combat Hostiles . | . . . Robots Corrupted . | . . . Combat Hostiles . | . . . Parts Fried . | . . . Impact Corruptions . | . . . Robots Melted . | . . . Combat Hostiles . | . . . Parts Melted . | . . . Heat Transferred . | . . . Parts Sabotaged . | . . . Parts Stolen . | . . . Parts Stripped . | . . . Power Chain Reactions . | . . . Alert | -11 -10 -10 ------- Run | Yrd Mat Sub Maximum Alert Level . | . . . Low Security (%) 100 | 100 100 . Level 1 . | . . . Level 2 . | . . . Level 3 . | . . . Level 4 . | . . . Level 5 . | . . . High Security . | . . . Max Security . | . . . Peak Influence 116 | . 116 . Initial . | . . . Average 49 | . 57 . Influence Increases 307 | . 307 . Destroy 0b10 Robot/C 200 | . 200 . Destroy 0b10 Robot/NC 20 | . 20 . Destroy Leader 44 | . 44 . Trap Triggered on 0b10 20 | . 20 . Successful Hack 23 | . 23 . Influence Decreases 307 | . 274 33 Entered New Map 17 | . . 17 Time Decay 290 | . 274 16 Squads Dispatched 2 | . 2 . Investigation 2 | . 2 . Extermination . | . . . Reinforcement . | . . . Assault . | . . . Garrison . | . . . Intercept . | . . . Searches Triggered . | . . . Construction Impeded . | . . . Haulers Reinforced . | . . . Active Scanning Responses . | . . . Cargo Convoy Interrupts . | . . . Stealth | -11 -10 -10 --------- Run | Yrd Mat Sub Distress Signals 2 | . 2 . Communications Jammed . | . . . Distress Signals . | . . . Times Spotted 16 | . 15 1 Peak Tracking Total 5 | . 5 1 Tactical Retreats . | . . . Traps | -11 -10 -10 ------- Run | Yrd Mat Sub Traps Triggered . | . . . Indirectly . | . . . Trap Hack Attempts . | . . . Triggered . | . . . Disarmed . | . . . Reprogrammed 6 | . 6 . Reused 2 | . 2 . Traps Extracted . | . . . Installed . | . . . Triggered 2 | . 2 . Machines | -11 -10 -10 ---------- Run | Yrd Mat Sub Machines Disabled . | . . . Max in Single Turn . | . . . Machines Repaired . | . . . Machines Dismantled . | . . . Machines Sabotaged . | . . . Overloaded Fab Kills . | . . . Hacking | -11 -10 -10 --------- Run | Yrd Mat Sub Machines Accessed 6 | . 6 . Terminals 5 | . 5 . Fabricators . | . . . Repair Stations 1 | . 1 . Recycling Units . | . . . Scanalyzers . | . . . Garrison Access . | . . . Total Hacks 15 | . 15 . Successful 8 | . 8 . Failed 7 | . 7 . Catastrophic 1 | . 1 . Database Lockouts . | . . . Manual . | . . . Terminals 14 | . 14 . Fabricators . | . . . Repair Stations 1 | . 1 . Recycling Units . | . . . Scanalyzers . | . . . Garrison Access . | . . . Terminal Hacks 7 | . 7 . Record 1 | . 1 . Prototype ID Bank 1 | . 1 . Emergency Access Points 1 | . 1 . Reprogram Traps 2 | . 2 . Transport Status 1 | . 1 . Zone Layout 1 | . 1 . Fabricator Hacks . | . . . Repair Station Hacks 1 | . 1 . Refit 1 | . 1 . Recycling Unit Hacks . | . . . Scanalyzer . | . . . Garrison Access Hacks . | . . . Unauthorized Hacks . | . . . Terminals . | . . . Fabricators . | . . . Repair Stations . | . . . Recycling Units . | . . . Scanalyzers . | . . . Garrison Access . | . . . Data Cores Recovered . | . . . Used . | . . . Hacking Detections 4 | . 4 . Full Trace Events 3 | . 3 . Feedback Events . | . . . Feedback Blocked . | . . . Robot Schematics Acquired . | . . . Robots Built . | . . . Authchips . | . . . Time . | . . . Total Robot Build Rating . | . . . Part Schematics Acquired . | . . . Parts Built . | . . . Authchips . | . . . Time . | . . . Total Part Build Rating . | . . . Part Studies Acquired . | . . . Parts Repaired . | . . . Time . | . . . Parts Recycled . | . . . Recycled Matter . | . . . Retrieved Matter . | . . . Retrieved Components . | . . . Parts Scanalyzed . | . . . Part Schematics Acquired . | . . . Parts Damaged . | . . . Bothacking | -11 -10 -10 ------------ Run | Yrd Mat Sub Used RIF Installer . | . . . Robots Hacked . | . . . Non-combat . | . . . Combat . | . . . Robot Hacks Applied . | . . . Relay Couplers Released . | . . . Fabnet Peak Effective % . | . . . Robots Rewired . | . . . Allies Hacked . | . . . Hacks Repelled . | . . . Allies | -11 -10 -10 -------- Run | Yrd Mat Sub Total Allies . | . . . Largest Group . | . . . Highest-Rated Group . | . . . Highest-Rated Ally . | . . . Total Orders . | . . . Ally Attacks . | . . . Total Damage . | . . . Kills . | . . . Allies Corrupted . | . . . Allies Melted . | . . . Intel | -11 -10 -10 ------- Run | Yrd Mat Sub Active Infowar (turns) . | . . . Robot Analysis Total . | . . . Derelict Logs Recovered . | . . . Drone Launches . | . . . Drone Recoveries . | . . . Exploration | -11 -10 -10 ------------- Run | Yrd Mat Sub Turns Passed 2388 | 119 701 1568 Spaces Moved 1236 | 71 336 829 Core 6 | 6 . . Treads 714 | 65 336 313 Legs 516 | . . 516 Wheels . | . . . Hover . | . . . Flight . | . . . Fastest Speed 50 | 50 160 120 Average Speed 142 | 150 160 135 Slowest Speed 160 | 160 160 160 Overloaded Moves . | . . . Propulsion Burnouts . | . . . Robots Hopped . | . . . Potential Cave-ins . | . . . Cave-ins Triggered . | . . . Exploration Rate (%) 19 | 4 50 3 Regions Visited 2 Branch Regions 1 Pre-discovered Areas . | . . . Known Exits Taken . | . . . Unknown Exits Taken 2 | 1 1 . Scrap Searched . | . . . Spaces Dug . | . . . Terrain Destroyed . | . . . Melee . | . . . Projectile . | . . . AOE . | . . . Terrain Rammed 50 | . . 50 Walls Destroyed . | . . . Machines Disabled . | . . . Actions | -11 -10 -10 --------- Run | Yrd Mat Sub Total 1662 | 80 399 1183 Wait 275 | . 4 271 Move 1234 | 70 335 829 Hop . | . . . Pick Up 7 | 4 1 2 Fast Attach 7 | 6 1 . Attach 4 | . . 4 Detach 4 | . 1 3 Swap . | . . . Drop 3 | . 1 2 Fire 79 | . 56 23 Melee . | . . . Ram 49 | . . 49 Kick . | . . . Crush . | . . . Escape Stasis . | . . . Rewire . | . . . Trap . | . . . Miscellaneous . | . . . Route ------- -11/Scrapyard -10/Materials (discovered 3 exits: [*Mat] / [*Min] / [*Sub]) -10/Subcaves History --------- Turn | Location | Event 8 | -11/Scrapyard | Discovered new exit (range 15) 120 | -11/Scrapyard | Entered Materials 311 | -10/Materials | Build established: Mutant 400 | -10/Materials | Discovered new exit (range 6) 640 | -10/Materials | Discovered new exit (range 8) 718 | -10/Materials | Discovered new exit (range 16) 821 | -10/Materials | Entered Subcaves 822 | -10/Subcaves | Approached by a straggling Scientist 1320 | -10/Subcaves | Ambushed by angry Subdweller bent on revenge 2301 | -10/Subcaves | Core integrity fell below 50% 2331 | -10/Subcaves | System corruption reached 10% 2354 | -10/Subcaves | Core integrity fell below 20% 2389 | -10/Subcaves | Core destroyed Last Messages --------------- 02373_ Subatomizers dissect the Wheel. 02373_ Slammed into Twisted Machinery. 02373_ Destabilizing: System corrupted (+2). 02373_ Destabilizing: System corrupted (+1). 02375_ Slammed into Twisted Machinery. 02376_ System corrupted: Energy discharge (-33). 02377_ Slammed into Twisted Machinery. 02377_ Destabilizing: Core damaged (-7). 02379_ Slammed into Twisted Machinery. 02381_ Destabilizing: Core damaged (-2). 02383_ Slammed into Twisted Machinery. 02383_ Destabilizing: System corrupted (+2). 02384_ Subatomizers dissect the Wheel, destroying it. 02385_ Slammed into Twisted Machinery. 02385_ Destabilizing: Core damaged (-2). 02387_ Slammed into Twisted Machinery. 02387_ Destabilizing: System corrupted (+1). 02389_ Slammed into Twisted Machinery. 02389_ Destabilizing: Core damaged (-12). Map ----- +----------------------------------------------------+ | ?????????????????????????????????????????????????? | | ?????????????????????????????????????????????????? | | ?????????????????????????????????????????????????? | | ?????????????????????????????????????????????????? | | ?????????????????????????????????????????????????? | | ?????????????????????????????????????????????????? | | ?????????????????????????????????????????????????? | | ?????????????????????????????????????????????????? | | ?????????????????????????????????????????????????? | | ?????????????????????????????????????????????????? | | ?????????????????????????????????????????????????? | | ?????????????????????????????????????????????????? | | ????????????????????????????#####????????????????? | | ?????????????????############"""#?????? ## ????? | | ?????????????????# # # ## """""#####? ????? | | ?????????????????# """""# # # ???? | | ?????????????????# """## " ???? | | ?????????????????## # # #####"" " " ???? | | ?????????????????# #####??# "# # #?????? | | ?????????????????## ##??????# ##?#?? ##?????? | | ?????????????????# ##????## #??????????????? | | ?????????????????### ###??# # #??????????????? | | ????????????????#### #??# # #??????????????? | | ???????????????## ## #??## ### #??????????????? | | ???????????????# #### #?##??????????????? | | ??????????????## ! @" #?????????????????? | | ??????????????# #######?????????????????? | | ??????????????## ## ##???????????????????????? | | ???????????????## ######????????????????????????? | | ???????#####???## #?????????????????????????????? | | ?????### ##### ##?????????????????????????????? | | ????## ## ## #??????????????????????????????? | | ????# & &#??????????????????????????????? | | ????#"""######## #??????????????????????????????? | | ????#####??????####??????????????????????????????? | | ?????????????????????????????????????????????????? | | ?????????????????????????????????????????????????? | | ?????????????????????????????????????????????????? | | ?????????????????????????????????????????????????? | | ?????????????????????????????????????????????????? | | ?????????????????????????????????????????????????? | | ?????????????????????????????????????????????????? | | ?????????????????????????????????????????????????? | | ?????????????????????????????????????????????????? | | ?????????????????????????????????????????????????? | | ?????????????????????????????????????????????????? | | ?????????????????????????????????????????????????? | | ?????????????????????????????????????????????????? | | ?????????????????????????????????????????????????? | | ?????????????????????????????????????????????????? | +----------------------------------------------------+ Best States ------------- Heat Dissipation 25 Energy Generation 10 Energy Capacity 125 Matter Stores 300 Matter Capacity 300 Sight Range 16 Terrain Scan Density 10 Armor Coverage 150 Evasion (%) 55 Recoil Reduction 2 Item Schematics ----------------- None Robot Schematics ------------------ None Fabricated ------------ Nothing Repaired ---------- Nothing Studied --------- None Alien Tech Used ----------------- None Achievements -------------- Art Critic Challenges ------------ None Game ------ Seed AnalysisSniperMonowheel Manual? 0 Play Time 00:12:59 Cumulative 18.2 hours Start 2025.11.10 @ 13:07:42 End 2025.11.10 @ 13:20:40 Sessions 1 Manual Loads 0 Difficulty Rogue Special Mode None Game No. 45 Rogue 45 Adventurer 0 Explorer 0 Win Type - Total 0 Types 0/0/0/0/0/0/0/0/0/0 Lore% 10 Gallery% 21 Achievement% 16 Wizard Run 0 Options --------- Layout 1 ASCII 0 Keyboard 1 Movement Vi Keybinds 0 Fullscreen 1 Font 24/Smallcaps Map View 50x35 Zoom Use 0% Tactical HUD 1 Map Filters NONE Filters NONE Steam 1 RUN: c894ecf0-7d8e-4238-a542-6a84056ecff0